bitfinex/quotes_BTCUSD_20251230
["timestamp","ask_amount","ask_price","bid_price","bid_amount"]
[1767105216366,0.00010705,88044.0,88042.0,0.05679057]
[1767105216635,0.0002,88056.0,88050.0,0.01135718]
[1767105216822,1e-08,88056.0,88053.0,0.01135679]
[1767105216981,1e-08,88056.0,88052.0,0.01135692]
[1767105217178,1e-08,88056.0,88049.0,0.01135731]
[1767105217381,1e-08,88056.0,88048.0,0.06814439]
[1767105217622,1e-08,88056.0,88049.0,0.01135731]
[1767105217797,1e-08,88056.0,88048.0,0.01135744]
[1767105217994,1e-08,88056.0,88052.0,0.01135692]
[1767105218199,1e-08,88056.0,88054.0,0.05678277]
[1767105218421,1e-08,88056.0,88052.0,0.01135692]
[1767105218611,1e-08,88056.0,88053.0,0.01135679]
[1767105218798,1e-08,88056.0,88052.0,0.01135692]
[1767105219223,1e-08,88056.0,88054.0,0.05678333]
[1767105219428,1e-08,88056.0,88050.0,0.01135718]
[1767105219429,1e-08,88056.0,88013.0,0.45447403]
[1767105219635,0.01135692,88052.0,88037.0,0.0681528]
[1767105219836,0.01215566,88054.0,88042.0,0.01152]
[1767105220070,0.01135679,88053.0,88042.0,0.01152]
[1767105220253,1e-08,88056.0,88050.0,0.01135718]
[1767105220453,0.00022001,88056.0,88045.0,0.01135782]
[1767105220652,0.01135731,88049.0,88032.0,0.0113595]
[1767105220834,0.01135924,88034.0,88013.0,0.14752]
[1767105221053,0.01135963,88031.0,88013.0,0.15888195]
[1767105221354,0.01135976,88030.0,88017.0,0.01136144]
[1767105221559,0.0113595,88032.0,88017.0,0.01136144]
[1767105221876,0.01135924,88034.0,88018.0,0.06816761]
[1767105222111,0.01135911,88035.0,88022.0,0.01136079]
[1767105222279,0.01135911,88035.0,88019.0,0.06816663]
[1767105222280,0.01135924,88034.0,88021.0,0.01136092]
[1767105222439,0.01135924,88034.0,88022.0,0.01136079]
[1767105222639,0.01135924,88034.0,88020.0,0.01136105]
[1767105222843,0.01135924,88034.0,88016.0,0.0796892]
[1767105222844,0.01818792,88028.0,88016.0,0.02288157]
[1767105223061,0.000249,88016.0,88007.0,0.0451826]
[1767105223290,0.01136182,88014.0,87999.0,0.01136376]
[1767105223485,0.01161057,88016.0,88005.0,0.0002]
[1767105223687,0.06816818,88018.0,88005.0,0.0002]
[1767105223688,0.01136131,88018.0,88005.0,0.0002]
[1767105223862,0.01136053,88024.0,88005.0,0.0002]
[1767105223863,0.01136208,88012.0,88005.0,0.0002]
[1767105224065,0.01818792,88012.0,88005.0,0.0002]
[1767105224264,0.01136221,88011.0,88005.0,0.00055709]
[1767105224665,0.06817068,88015.0,88005.0,0.00055709]
[1767105224920,0.02954974,88014.0,88005.0,0.00055709]
[1767105225214,0.01136195,88013.0,88005.0,0.00055709]
[1767105225403,0.01136234,88010.0,88005.0,0.00055709]
[1767105225612,0.01136221,88011.0,88005.0,0.00055709]
[1767105225782,0.06817565,88008.0,88005.0,0.00055709]
[1767105225991,0.01136415,87996.0,87985.0,0.000338]
[1767105226207,0.55468011,87995.0,87985.0,0.00044503]
[1767105226409,0.01818792,87994.0,87985.0,0.00044503]
[1767105226589,0.06819111,87988.0,87985.0,0.00031403]
[1767105226796,0.06819111,87988.0,87968.0,0.02288777]
[1767105226797,0.05682722,87986.0,87968.0,0.01152]
[1767105226998,0.01156569,87984.0,87968.0,0.01152]
[1767105227179,0.01136673,87976.0,87973.0,0.00010706]
[1767105227383,0.06820047,87976.0,87973.0,0.00010706]
[1767105227884,0.01136699,87974.0,87963.0,0.0002]
[1767105228081,0.01818792,87966.0,87963.0,0.0002]
[1767105228280,0.01152,87965.0,87963.0,0.0002]
[1767105228500,0.01062605,87965.0,87963.0,0.0002]
[1767105229531,0.0113688,87960.0,87954.0,0.0002]
[1767105229737,0.01136893,87959.0,87954.0,0.00030726]
[1767105229946,0.01136919,87957.0,87954.0,0.00030726]
[1767105230153,0.02288919,87957.0,87954.0,0.00030726]
[1767105230323,0.01152,87957.0,87954.0,0.00030726]
[1767105230522,0.010983,87957.0,87954.0,0.00030726]
[1767105230743,0.0002,87967.0,87956.0,0.01136932]
[1767105231059,0.57286803,87980.0,87956.0,0.01136932]
[1767105231060,0.01152,87970.0,87956.0,0.01136932]
[1767105231291,0.01818792,87979.0,87967.0,0.05683949]
[1767105231427,0.01152,87977.0,87970.0,0.00035]
[1767105231831,0.01818792,87980.0,87972.0,0.01136725]
[1767105232035,0.01152,87979.0,87967.0,0.01136789]
[1767105232451,0.02970792,87979.0,87969.0,0.01136764]
[1767105233017,0.01117,87979.0,87970.0,0.01136751]
[1767105233215,0.0002,87983.0,87965.0,0.22736065]
[1767105233216,0.0002,87983.0,87976.0,0.06820021]
[1767105233458,0.0002,87983.0,87977.0,0.0113666]
[1767105233659,0.0002,87983.0,87980.0,0.01136621]
[1767105233868,0.0002,87983.0,87979.0,0.01136634]
[1767105234042,0.0002,87983.0,87980.0,0.01136621]
[1767105234244,0.02955168,87999.0,87986.0,0.01136544]
[1767105234454,0.02955168,87999.0,87976.0,0.01136673]
[1767105234455,0.01136441,87994.0,87976.0,0.01136673]
[1767105234657,0.0002,87993.0,87981.0,0.01136609]
[1767105234857,0.0002,87993.0,87980.0,0.01136621]
[1767105235061,0.01156454,87993.0,87980.0,0.01136621]
[1767105235703,0.01136492,87990.0,87978.0,0.01136647]
[1767105235903,0.01156454,87993.0,87982.0,0.01136596]
[1767105235904,0.0002,87993.0,87982.0,0.01136596]
[1767105236082,0.01136479,87991.0,87977.0,0.0113666]
[1767105236286,0.01136466,87992.0,87978.0,0.01136647]
[1767105236486,0.01136492,87990.0,87978.0,0.01136647]
[1767105236692,0.000549,87978.0,87974.0,0.02288699]
[1767105236886,0.000549,87978.0,87976.0,0.05683357]
[1767105237093,0.01818792,87984.0,87980.0,0.01136621]
[1767105237357,0.01818792,87984.0,87979.0,0.01136634]
[1767105237681,0.01152,87989.0,87980.0,0.01136621]
[1767105237913,0.01152,87989.0,87982.0,0.01136596]
[1767105238094,0.01152,87989.0,87981.0,0.01136609]
[1767105238298,0.01152,87989.0,87986.0,0.01136544]
[1767105238495,0.0002,87993.0,87984.0,0.0113657]
[1767105238679,0.0002,87993.0,87985.0,0.01136557]
[1767105238890,0.0002,87993.0,87983.0,0.01136583]
[1767105239326,0.0002,87993.0,87982.0,0.06819521]
[1767105239709,0.0002,87993.0,87982.0,0.01136596]
[1767105239912,0.0002,87993.0,87984.0,0.0113657]
[1767105240108,0.0002,87993.0,87985.0,0.01136557]
[1767105240313,0.0002,87993.0,87980.0,0.06819709]
[1767105240625,0.0002,87993.0,87983.0,0.01136583]
[1767105241007,0.0002,87993.0,87987.0,0.01136531]
[1767105241194,0.0002,87993.0,87986.0,0.01136544]
[1767105241407,0.01136182,88014.0,87998.0,0.01136389]
[1767105241599,0.0002,88005.0,87996.0,0.01136415]
[1767105241940,0.001099,87996.0,87985.0,0.0002]
[1767105242265,0.01136415,87996.0,87985.0,0.0002]
[1767105242470,0.01152,87996.0,87985.0,0.0002]
[1767105242814,0.01152,87996.0,87985.0,0.05702746]
[1767105242978,0.01152,87996.0,87987.0,0.01136531]
[1767105243182,0.01152,87996.0,87988.0,0.01136518]
[1767105243445,0.000549,87988.0,87985.0,0.0002]
[1767105243797,0.01136466,87992.0,87985.0,0.0002]
[1767105244206,0.01136454,87993.0,87985.0,0.0002]
[1767105244543,0.01136466,87992.0,87979.0,0.01136634]
[1767105244717,0.01152,87996.0,87987.0,0.01136531]
[1767105244887,0.01152,87996.0,87988.0,0.01136518]
[1767105245087,0.05681562,88004.0,87988.0,0.01136518]
[1767105245088,0.01156299,88005.0,87991.0,0.06818877]
[1767105245326,0.01152,88004.0,87991.0,0.01136479]
[1767105245738,0.01136311,88004.0,87989.0,0.06819005]
[1767105245933,0.01152,88003.0,87991.0,0.01136479]
[1767105246134,0.01152,88003.0,87993.0,0.01136454]
[1767105246346,0.01152,88003.0,87993.0,0.06818679]
[1767105246491,0.01152,88003.0,87994.0,0.01136441]
[1767105246693,0.01152,88003.0,87991.0,0.01136479]
[1767105246979,0.01152,88003.0,87992.0,0.01136466]
[1767105247134,0.01152,88003.0,87994.0,0.01136441]
[1767105247331,0.01152,88003.0,87995.0,0.01136428]
[1767105247666,0.01152,88003.0,87994.0,0.01136441]
[1767105247794,0.01152,88003.0,87993.0,0.01136454]
[1767105248000,0.01152,88003.0,87996.0,0.01136415]
[1767105248209,0.01152,88003.0,87992.0,0.01136466]
[1767105248438,0.000549,87992.0,87986.0,0.01136544]
[1767105248658,0.01818792,87999.0,87986.0,0.01136544]
[1767105248886,0.01818792,87999.0,87987.0,0.01136531]
[1767105249079,0.01152,88003.0,87991.0,0.01136479]
[1767105249279,0.01152,88003.0,87992.0,0.01136466]
[1767105249843,0.01152,88003.0,87994.0,0.01136441]
[1767105250042,0.01152,88003.0,87992.0,0.01136466]
[1767105250255,0.000549,87992.0,87980.0,0.05683053]
[1767105250575,0.02955168,87999.0,87984.0,0.0113657]
[1767105250778,0.02955168,87999.0,87986.0,0.01136544]
[1767105250974,0.01818792,87999.0,87988.0,0.01136518]
[1767105251173,0.01818792,87999.0,87987.0,0.01136531]
[1767105251382,0.001099,87987.0,87980.0,0.01152]
[1767105251762,0.01136492,87990.0,87980.0,0.01152]
[1767105252400,0.01152,87992.0,87984.0,0.0113657]
[1767105252600,0.01152,87999.0,87991.0,0.01136479]
[1767105252979,0.01152,87999.0,87993.0,0.01136454]
[1767105253524,0.01152,87999.0,87994.0,0.01136441]
[1767105253659,0.0002,88005.0,87998.0,0.01136389]
[1767105253860,0.0002,88005.0,88002.0,0.01136337]
[1767105254088,0.0002,88005.0,88002.0,0.06601966]
[1767105254488,0.01152,88013.0,88008.0,0.0113626]
[1767105254689,0.01152,88013.0,88005.0,0.01136299]
[1767105255046,0.000338,88016.0,88005.0,0.01136299]
[1767105255247,0.000338,88016.0,88009.0,0.01136247]
[1767105255452,0.000549,88009.0,88002.0,0.01136337]
[1767105255583,0.000549,88009.0,88006.0,0.01136286]
[1767105255780,0.000338,88016.0,88006.0,0.01136286]
[1767105255984,0.000338,88016.0,88007.0,0.01136273]
[1767105256179,0.000338,88016.0,88004.0,0.01136311]
[1767105256383,0.000338,88016.0,88005.0,0.01136299]
[1767105256624,0.000338,88016.0,88006.0,0.0568143]
[1767105256825,0.000338,88016.0,88005.0,0.01136299]
[1767105257033,0.0001071,88014.0,88006.0,0.01136286]
[1767105257241,0.0001071,88014.0,88008.0,0.0113626]
[1767105257442,0.0001071,88014.0,88009.0,0.01136247]
[1767105257923,0.0001071,88014.0,88011.0,0.01136221]
[1767105258260,0.0001071,88014.0,88011.0,0.06817267]
[1767105258463,0.0001071,88014.0,88008.0,0.0113626]
[1767105258668,0.00055,88008.0,87998.0,0.02288389]
[1767105258863,0.01136286,88006.0,87998.0,0.01152]
[1767105259430,0.01136286,88006.0,87993.0,0.01136454]
[1767105259431,0.01136273,88007.0,87995.0,0.01152]
[1767105259565,0.55468011,88010.0,87991.0,0.0002]
[1767105259566,0.0113635,88001.0,87991.0,0.0002]
[1767105259765,0.01136454,87993.0,87978.0,0.06819834]
[1767105259981,0.06818569,87995.0,87981.0,0.01136609]
[1767105260186,0.01136454,87993.0,87980.0,0.01136621]
[1767105260627,0.02970792,87999.0,87986.0,0.01136544]
[1767105260829,0.000338,88016.0,88003.0,0.01136324]
[1767105261042,0.000338,88016.0,88008.0,0.0113626]
[1767105261469,0.000338,88016.0,88011.0,0.01136221]
[1767105261703,0.0002,88025.0,88020.0,0.01136105]
[1767105261933,0.01135834,88041.0,88012.0,0.01152]
[1767105261934,0.01152,88035.0,88027.0,0.01136015]
[1767105262156,0.01172,88035.0,88026.0,0.0110029]
[1767105262371,0.000349,88026.0,88025.0,0.05680204]
[1767105262581,0.000349,88026.0,88023.0,0.06816335]
[1767105262792,0.01172,88035.0,88023.0,0.06816335]
[1767105262793,0.01172,88035.0,88024.0,0.01136053]
[1767105263001,0.01172,88035.0,88025.0,0.0113604]
[1767105263212,0.01172,88035.0,88024.0,0.01136053]
[1767105263426,0.01172,88035.0,88023.0,0.01136066]
[1767105263639,0.02307911,88035.0,88021.0,0.01136092]
[1767105263852,0.01172,88035.0,88024.0,0.01136053]
[1767105264048,0.01172,88035.0,88023.0,0.01136066]
[1767105264530,0.02307911,88035.0,88022.0,0.01136079]
[1767105264730,0.000549,88022.0,88021.0,0.01136092]
[1767105264946,0.02307911,88035.0,88021.0,0.01136092]
[1767105264947,0.01172,88035.0,88021.0,0.06816554]
[1767105265358,0.01172,88035.0,88023.0,0.01136066]
[1767105265571,0.02307911,88035.0,88023.0,0.01136066]
[1767105265840,0.02307911,88035.0,88016.0,0.01136157]
[1767105265841,0.001099,88023.0,88016.0,0.01136157]
[1767105266045,0.001099,88023.0,88014.0,0.01152]
[1767105266274,0.01136002,88028.0,88014.0,0.01152]
[1767105266513,0.01136027,88026.0,88013.0,0.01136195]
[1767105266712,0.02284015,88027.0,88010.0,0.07965405]
[1767105266713,0.01148,88027.0,88015.0,0.01156169]
[1767105266933,0.01148,88027.0,88021.0,0.01136092]
[1767105267159,0.0071449,88027.0,88024.0,0.01136053]
[1767105267368,0.0002,88035.0,88025.0,0.0113604]
[1767105267781,0.0002,88035.0,88026.0,0.01136027]
[1767105268000,0.0002,88035.0,88030.0,0.01135976]
[1767105268227,0.01152,88040.0,88032.0,0.0113595]
[1767105268436,0.01152,88040.0,88029.0,0.01135989]
[1767105268646,0.07967123,88040.0,88028.0,0.01152]
[1767105268847,0.000549,88029.0,88028.0,0.01152]
[1767105269322,0.01152,88040.0,88028.0,0.01152]
[1767105269574,0.02991267,88058.0,88040.0,0.01135847]
[1767105269781,0.00010717,88054.0,88048.0,0.01135744]
[1767105269989,0.00010717,88054.0,88051.0,0.01135705]
[1767105270207,0.0003686,88058.0,88053.0,0.06814077]
[1767105270639,1e-08,88058.0,88055.0,0.06813922]
[1767105270859,0.0002,88066.0,88060.0,0.01135589]
[1767105271076,0.0002,88066.0,88057.0,0.01135628]
[1767105271291,0.0002,88066.0,88056.0,0.01148]
[1767105271509,0.001099,88057.0,88056.0,0.01148]
[1767105271937,0.01135524,88065.0,88056.0,0.01148]
[1767105272194,0.01135537,88064.0,88056.0,0.01148]
[1767105272709,0.01135602,88059.0,88050.0,0.01148]
[1767105272976,0.01135576,88061.0,88050.0,0.01148]
[1767105273117,0.01135563,88062.0,88050.0,0.01148]
[1767105273310,0.0113555,88063.0,88050.0,0.01148]
[1767105273523,0.01155512,88066.0,88051.0,0.01135705]
[1767105273723,0.0002,88066.0,88058.0,0.01135615]
[1767105273927,0.0002,88066.0,88055.0,0.05678269]
[1767105274135,0.0002,88066.0,88057.0,0.01135628]
[1767105274571,0.0002,88066.0,88056.0,0.0113564]
[1767105274786,0.0002,88066.0,88052.0,0.01135692]
[1767105275025,0.01135537,88064.0,88050.0,0.02283718]
[1767105275230,0.0002,88066.0,88056.0,0.0113564]
[1767105275505,0.0002,88066.0,88059.0,0.01135602]
[1767105275707,0.0681243,88075.0,88059.0,0.01135602]
[1767105275708,0.0004,88077.0,88066.0,0.0002]
[1767105275941,0.0004,88077.0,88073.0,0.000349]
[1767105276109,0.0004,88077.0,88074.0,0.01135408]
[1767105276318,0.0004,88077.0,88069.0,0.01135473]
[1767105276476,0.0004,88077.0,88074.0,0.01135408]
[1767105276688,0.0003686,88080.0,88074.0,0.01135408]
[1767105276689,0.0003686,88080.0,88077.0,0.0113537]
[1767105276893,6e-07,88080.0,88067.0,0.01148]
[1767105277081,0.01135344,88079.0,88070.0,0.01148]
[1767105277278,6e-07,88080.0,88046.0,0.22735349]
[1767105277279,0.01135473,88069.0,88046.0,0.22735349]
[1767105277591,0.01135499,88067.0,88054.0,0.01135666]
[1767105277796,0.01135512,88066.0,88053.0,0.01148]
[1767105277996,0.01135473,88069.0,88056.0,0.0113564]
[1767105278196,0.01135486,88068.0,88055.0,0.01135653]
[1767105278396,0.01135486,88068.0,88053.0,0.01148]
[1767105278629,0.01135537,88064.0,88051.0,0.01135705]
[1767105278797,0.01135563,88062.0,88054.0,0.01148]
[1767105279016,0.01135486,88068.0,88054.0,0.02283666]
[1767105279363,0.01135512,88066.0,88050.0,0.01135718]
[1767105279547,0.01135486,88068.0,88055.0,0.01135653]
[1767105279814,0.01818792,88069.0,88056.0,0.0113564]
[1767105279997,0.02954265,88069.0,88056.0,0.0113564]
[1767105280204,0.01148,88071.0,88060.0,0.01135589]
[1767105280360,0.02283447,88071.0,88059.0,0.01135602]
[1767105280576,0.01135447,88071.0,88059.0,0.01135602]
[1767105280776,0.01135473,88069.0,88055.0,0.01135653]
[1767105280953,0.0113546,88070.0,88057.0,0.01135628]
[1767105281159,0.01135357,88078.0,88070.0,0.000181]
[1767105281358,0.01135391,88080.0,88070.0,0.000181]
[1767105281564,0.01135357,88078.0,88064.0,0.02283537]
[1767105281761,0.01135434,88072.0,88064.0,0.01148]
[1767105281981,0.06812661,88072.0,88064.0,0.011112]
[1767105282187,0.01135421,88073.0,88064.0,0.011112]
[1767105282831,0.01135434,88072.0,88064.0,0.011112]
[1767105283092,0.01135421,88073.0,88064.0,0.011112]
[1767105283292,0.01135408,88074.0,88064.0,0.011112]
[1767105283491,0.0113537,88077.0,88064.0,0.011112]
[1767105283492,0.0113546,88070.0,88064.0,0.011112]
[1767105284046,0.01135434,88072.0,88064.0,0.011112]
[1767105284370,0.01135421,88073.0,88064.0,0.011112]
[1767105284569,0.01135434,88072.0,88064.0,0.011112]
[1767105284788,0.01135421,88073.0,88064.0,0.011112]
[1767105285075,0.02954226,88072.0,88064.0,0.011112]
[1767105285275,0.01818792,88072.0,88064.0,0.011112]
[1767105285496,0.01135486,88068.0,88060.0,0.01148]
[1767105285642,0.00055,88060.0,88051.0,0.01135705]
[1767105285819,0.00055,88060.0,88057.0,0.01148]
[1767105286232,0.02283473,88069.0,88057.0,0.01148]
[1767105286433,0.01135499,88067.0,88057.0,0.01148]
[1767105286688,0.02283473,88069.0,88057.0,0.02283628]
[1767105286893,0.01135486,88068.0,88056.0,0.0113564]
[1767105287050,0.01135512,88066.0,88053.0,0.07962026]
[1767105287295,0.02283473,88069.0,88038.0,0.14162]
[1767105287296,0.01135718,88050.0,88038.0,0.14162]
[1767105287599,0.01135731,88049.0,88038.0,0.01148]
[1767105287743,0.01135731,88049.0,88029.0,0.01135989]
[1767105287948,0.01135795,88044.0,88034.0,0.01148]
[1767105288183,0.01135821,88042.0,88036.0,0.0002]
[1767105288367,0.0113586,88039.0,88036.0,0.0002]
[1767105288587,0.01135847,88040.0,88034.0,0.00010717]
[1767105288966,0.0113586,88039.0,88034.0,0.00010717]
[1767105289367,0.01135873,88038.0,88034.0,0.00010717]
[1767105289808,0.01135937,88033.0,88025.0,0.000368]
[1767105290147,0.01135898,88036.0,88025.0,0.000368]
[1767105290351,0.01135808,88043.0,88026.0,0.01136027]
[1767105290549,0.01158707,88041.0,88027.0,0.01136015]
[1767105290743,0.01135873,88038.0,88025.0,0.0117284]
[1767105291056,0.01135886,88037.0,88025.0,0.0117284]
[1767105291257,0.01135886,88037.0,88025.0,0.000368]
[1767105291454,0.02294541,88041.0,88028.0,0.01136002]
[1767105291692,0.0113586,88039.0,88026.0,0.01136027]
[1767105291894,0.01135937,88033.0,88025.0,0.000368]
[1767105292125,0.01135898,88036.0,88025.0,0.000368]
[1767105292280,0.01135924,88034.0,88025.0,0.000368]
[1767105292481,0.05680081,88027.0,88025.0,0.000368]
[1767105292677,0.05679469,88037.0,88004.0,0.00056443]
[1767105292678,0.01136169,88015.0,88004.0,0.00056443]
[1767105292895,0.01136273,88007.0,88005.0,0.0002]
[1767105293099,0.01136273,88007.0,87989.0,0.01136505]
[1767105293100,0.01136363,88000.0,87989.0,0.01148]
[1767105293295,0.01136363,88000.0,87994.0,0.0002]
[1767105293536,0.06818009,88003.0,87994.0,0.0002]
[1767105293709,0.01136337,88002.0,87994.0,0.0002]
[1767105293911,0.0113635,88001.0,87994.0,0.0002]
[1767105294109,0.01136324,88003.0,87994.0,0.00055737]
[1767105294316,0.06818005,88003.0,87994.0,0.00055737]
[1767105294527,0.06818005,88003.0,87986.0,0.06819202]
[1767105294528,0.05682722,87986.0,87975.0,0.0002]
[1767105294724,0.0113657,87984.0,87975.0,0.0003071]
[1767105294922,0.0681989,87978.0,87975.0,0.0003071]
[1767105295123,0.05683497,87974.0,87968.0,0.00053601]
[1767105295329,0.05683805,87970.0,87968.0,0.00053601]
[1767105295530,0.00019999,87973.0,87960.0,0.05684402]
[1767105295753,0.00019999,87973.0,87963.0,0.01156841]
[1767105295918,0.01136738,87971.0,87963.0,0.0002]
[1767105296126,0.01148,87975.0,87971.0,0.00055]
[1767105296574,0.01148,87975.0,87964.0,0.01136828]
[1767105296806,0.02284686,87975.0,87963.0,0.01156841]
[1767105296933,0.01148,87975.0,87965.0,0.01136815]
[1767105297134,0.01133,87975.0,87964.0,0.06820921]
[1767105297340,0.01133,87975.0,87964.0,0.01136828]
[1767105297548,0.01136634,87979.0,87964.0,0.01136828]
[1767105297549,0.01148,87974.0,87965.0,0.01136815]
[1767105297732,0.01148,87974.0,87963.0,0.01156841]
[1767105298372,0.01148,87974.0,87965.0,0.01136815]
[1767105298719,0.01148,87974.0,87963.0,0.01156841]
[1767105298887,0.01148,87974.0,87965.0,0.01136815]
[1767105299090,0.01148,87973.0,87963.0,0.01156841]
[1767105299536,0.01136725,87972.0,87963.0,0.0002]
[1767105299702,0.01818792,87967.0,87960.0,0.00010726]
[1767105299928,0.01148,87973.0,87962.0,0.01136854]
[1767105300123,0.01148,87973.0,87967.0,0.00055]
[1767105300301,0.01148,87973.0,87960.0,0.06832001]
[1767105300626,0.45450009,88009.0,87960.0,0.06832001]
[1767105300627,0.01148,87976.0,87973.0,0.01136712]
[1767105300782,0.01148,87985.0,87977.0,0.0113666]
[1767105300983,0.00404775,87985.0,87977.0,0.0113666]
[1767105301200,0.45445152,88019.0,87976.0,0.01211673]
[1767105301201,0.01136299,88005.0,87991.0,0.01136479]
[1767105301554,0.81227996,88020.0,87991.0,0.01136479]
[1767105301555,0.01136182,88014.0,87996.0,0.01136415]
[1767105301758,0.01136131,88018.0,88003.0,0.01136324]
[1767105301896,0.01136131,88018.0,88000.0,0.06818176]
[1767105301897,0.06815939,88029.0,88012.0,0.01136208]
[1767105302080,0.06815939,88029.0,88002.0,0.01148]
[1767105302081,0.01136092,88021.0,88018.0,0.00075]
[1767105302278,0.05681108,88011.0,87996.0,0.01148]
[1767105302491,0.01148,88016.0,88002.0,0.01136337]
[1767105302712,0.01136195,88013.0,87999.0,0.01136376]
[1767105302910,0.01136195,88013.0,87970.0,0.2]
[1767105302911,0.01191376,87999.0,87983.0,0.01136583]
[1767105303116,0.05681074,88012.0,87996.0,0.01136415]
[1767105303343,0.01148,88011.0,87996.0,0.01136415]
[1767105303544,0.85771996,88020.0,87994.0,0.05682167]
[1767105303545,0.01136105,88020.0,87994.0,0.05682167]
[1767105303875,0.01136182,88014.0,87999.0,0.01136376]
[1767105304061,0.01136157,88016.0,88003.0,0.01136324]
[1767105304273,0.01136208,88012.0,88000.0,0.01136363]
[1767105304422,0.06816951,88016.0,88001.0,0.0113635]
[1767105304423,0.01136157,88016.0,88001.0,0.0113635]
[1767105304620,0.01148,88020.0,88011.0,0.01136221]
[1767105304937,0.02284118,88019.0,88006.0,0.01136286]
[1767105305139,0.02284118,88019.0,88001.0,0.0113635]
[1767105305140,0.01136144,88017.0,88001.0,0.0113635]
[1767105305348,0.01136195,88013.0,87997.0,0.01136402]
[1767105305515,0.01136182,88014.0,88000.0,0.01136363]
[1767105305718,0.01136208,88012.0,87999.0,0.01136376]
[1767105305918,0.01136324,88003.0,87991.0,0.01136479]
[1767105306227,0.06817508,88009.0,87991.0,0.01136479]
[1767105306410,0.01136376,87999.0,87985.0,0.01148]
[1767105306614,0.01148,88003.0,87985.0,0.02284557]
[1767105306835,0.01136376,87999.0,87987.0,0.01136531]
[1767105307040,0.01148,88003.0,87985.0,0.02284557]
[1767105307249,0.01136376,87999.0,87985.0,0.01148]
[1767105307509,0.01136402,87997.0,87985.0,0.01148]
[1767105307711,0.01136363,88000.0,87985.0,0.01148]
[1767105307927,0.01136376,87999.0,87985.0,0.01148]
[1767105308124,0.01136389,87998.0,87986.0,0.01136544]
[1767105308357,0.01136376,87999.0,87986.0,0.01136544]
[1767105308565,0.81227996,88020.0,87991.0,0.01136479]
[1767105308777,0.05680978,88013.0,87998.0,0.01136389]
[1767105308972,0.01136221,88011.0,87997.0,0.01136402]
[1767105309178,0.01148,88010.0,87998.0,0.01136389]
[1767105309380,0.01148,88010.0,87999.0,0.01136376]
[1767105309511,0.01148,88010.0,88001.0,0.0113635]
[1767105309724,0.02284234,88010.0,87997.0,0.01136402]
[1767105309922,0.06816963,88016.0,87999.0,0.01136376]
[1767105310145,0.06816963,88016.0,87998.0,0.01136389]
[1767105310146,0.01136208,88012.0,87998.0,0.01136389]
[1767105310358,0.01136221,88011.0,87998.0,0.01136389]
[1767105310757,0.01136208,88012.0,88000.0,0.01136363]
[1767105311123,0.01136221,88011.0,87999.0,0.01136376]
[1767105311308,0.01136221,88011.0,87998.0,0.01136389]
[1767105311665,0.01136221,88011.0,87999.0,0.01136376]
[1767105311872,0.01136195,88013.0,88000.0,0.01136363]
[1767105312259,0.01136195,88013.0,87994.0,0.01136441]
[1767105312469,0.0113626,88008.0,87995.0,0.01136428]
[1767105312660,0.01136324,88003.0,87990.0,0.14884]
[1767105312910,0.01136324,88003.0,87989.0,0.01136505]
[1767105313115,0.01136337,88002.0,87989.0,0.01136505]
[1767105313268,0.01148,88007.0,87997.0,0.01136402]
[1767105313677,0.01148,88007.0,88000.0,0.05681818]
[1767105313872,0.01136208,88012.0,87999.0,0.01136376]
[1767105314116,0.01148,88011.0,88001.0,0.0113635]
[1767105314319,0.01854492,88021.0,88007.0,0.01136273]
[1767105314528,0.01854492,88021.0,88000.0,0.02272727]
[1767105314529,0.000357,88021.0,88013.0,0.01136195]
[1767105314740,0.000357,88021.0,88018.0,0.01136131]
[1767105314964,0.01135847,88040.0,88020.0,0.05680527]
[1767105315106,0.02283886,88037.0,88023.0,0.01136066]
[1767105315311,0.01135911,88035.0,88022.0,0.01136079]
[1767105315524,0.01135886,88037.0,88023.0,0.05680333]
[1767105315746,0.00056901,88038.0,88030.0,0.01135976]
[1767105315983,0.00056901,88038.0,88031.0,0.01135963]
[1767105316219,0.00056901,88038.0,88028.0,0.01136002]
[1767105316365,0.00056901,88038.0,88030.0,0.05679881]
[1767105316564,0.00056901,88038.0,88032.0,0.0113595]
[1767105316767,0.00056901,88038.0,88031.0,0.01135963]
[1767105317093,0.00056901,88038.0,88033.0,0.01135937]
[1767105317287,0.00056901,88038.0,88029.0,0.01135989]
[1767105317542,0.00056901,88038.0,88030.0,0.01135976]
[1767105317737,0.00056901,88038.0,88035.0,0.01135911]
[1767105317936,0.02283731,88049.0,88036.0,0.01135898]
[1767105318299,0.01135744,88048.0,88036.0,0.01135898]
[1767105318724,0.01135744,88048.0,88034.0,0.05679623]
[1767105318725,0.01135744,88048.0,88034.0,0.01135924]
[1767105318924,0.02283731,88049.0,88039.0,0.0113586]
[1767105318925,0.01148,88049.0,88039.0,0.0113586]
[1767105319133,0.01148,88049.0,88038.0,0.01135873]
[1767105319335,0.01818792,88055.0,88046.0,0.01135769]
[1767105319492,0.01148,88059.0,88046.0,0.01135769]
[1767105319695,0.01148,88059.0,88048.0,0.01135744]
[1767105319897,0.01148,88060.0,88053.0,0.01135679]
[1767105320119,1e-08,88056.0,88054.0,0.05678333]
[1767105320322,1e-08,88056.0,88054.0,0.19473333]
[1767105320649,1e-08,88056.0,88054.0,0.05678333]
[1767105320895,1e-08,88056.0,88049.0,0.01135731]
[1767105320896,0.000549,88054.0,88049.0,0.01135731]
[1767105321020,0.000549,88054.0,88051.0,0.01135705]
[1767105321212,1e-08,88056.0,88053.0,0.06814077]
[1767105321497,1e-08,88056.0,88055.0,0.19473269]
[1767105321983,0.01135395,88075.0,88055.0,0.19473269]
[1767105321984,0.01135241,88087.0,88075.0,0.01135395]
[1767105322194,0.01135241,88087.0,88072.0,0.01135434]
[1767105322195,0.00030715,88085.0,88072.0,0.01135434]
[1767105322393,0.00055,88072.0,88067.0,0.01148]
[1767105322592,0.01818792,88070.0,88067.0,0.01148]
[1767105322823,0.01135486,88068.0,88060.0,0.01148]
[1767105323050,0.01135512,88066.0,88060.0,0.01148]
[1767105323243,0.01818792,88070.0,88041.0,0.13795]
[1767105323244,0.05678269,88055.0,88041.0,0.13795]
[1767105323439,0.22711102,88063.0,88042.0,0.02283821]
[1767105323440,0.01135602,88059.0,88042.0,0.02283821]
[1767105323788,0.01135679,88053.0,88042.0,0.01148]
[1767105323975,0.23857966,88068.0,88024.0,0.22720821]
[1767105323976,0.01135782,88045.0,88032.0,0.0113595]
[1767105324192,0.05677913,88061.0,88045.0,0.01190682]
[1767105324399,0.0113564,88056.0,88045.0,0.000549]
[1767105324611,0.01135692,88052.0,88042.0,0.01148]
[1767105324821,0.01135705,88051.0,88042.0,0.01148]
[1767105325102,0.00010715,88052.0,88043.0,0.01135808]